bitfinex/quotes_BTCUSD_20250523
["timestamp","ask_amount","ask_price","bid_price","bid_amount"]
[1748025613351,0.33913538,108970.0,108960.0,0.05385592]
[1748025613565,1.37773664,108970.0,108960.0,0.00045592]
[1748025613780,0.20196395,108930.0,108920.0,0.0505]
[1748025613969,0.61496014,108930.0,108920.0,0.05091425]
[1748025614617,0.29150951,108930.0,108920.0,0.05091425]
[1748025615445,0.29150951,108930.0,108920.0,0.05391425]
[1748025615446,0.29250951,108930.0,108920.0,0.05391425]
[1748025616156,0.61596014,108930.0,108920.0,0.00341425]
[1748025616360,0.61496014,108930.0,108920.0,0.05701425]
[1748025616567,0.61496014,108930.0,108920.0,0.05801425]
[1748025616769,0.29150951,108930.0,108920.0,0.05501425]
[1748025619156,0.18363786,108910.0,108890.0,0.39616]
[1748025619306,0.28412781,108900.0,108890.0,1.04810689]
[1748025619504,0.28238284,108900.0,108890.0,1.04810689]
[1748025620352,0.28238284,108900.0,108890.0,1.05210689]
[1748025621307,0.28238284,108900.0,108890.0,1.39210689]
[1748025622037,0.28338284,108900.0,108890.0,1.39610689]
[1748025622212,0.28338284,108900.0,108890.0,1.41890689]
[1748025623678,0.28338284,108900.0,108890.0,1.43717157]
[1748025624987,0.35730291,108900.0,108890.0,0.04957157]
[1748025625176,0.40400498,108900.0,108890.0,0.00850689]
[1748025625389,0.35730291,108900.0,108890.0,0.00850689]
[1748025625594,0.38470291,108900.0,108890.0,0.00850689]
[1748025626042,0.43040291,108900.0,108890.0,0.00450689]
[1748025626240,0.42940291,108900.0,108890.0,0.00350689]
[1748025626454,0.43040291,108900.0,108890.0,0.00650689]
[1748025628668,0.35648284,108900.0,108890.0,0.00650689]
[1748025628868,0.32889671,108900.0,108890.0,0.00650689]
[1748025629491,0.32889671,108900.0,108890.0,0.02290689]
[1748025629720,0.32889671,108900.0,108890.0,0.02930689]
[1748025630363,0.32889671,108900.0,108890.0,0.74566689]
[1748025630364,0.28319671,108900.0,108890.0,0.74566689]
[1748025630572,0.19365115,108900.0,108890.0,0.74566689]
[1748025630997,0.19365115,108900.0,108890.0,1.14194689]
[1748025631212,0.19691628,108900.0,108890.0,1.2306333]
[1748025631394,0.1877338,108900.0,108890.0,1.2306333]
[1748025631856,0.1877338,108900.0,108890.0,1.23937754]
[1748025636261,0.1877338,108900.0,108890.0,1.43223262]
[1748025636473,0.2213843,108900.0,108890.0,1.44141603]
[1748025636698,0.21220224,108900.0,108890.0,0.86301754]
[1748025636907,0.20301993,108900.0,108890.0,1.51453754]
[1748025637322,0.20301993,108900.0,108890.0,0.86301754]
[1748025637527,0.20301993,108900.0,108890.0,1.51453754]
[1748025637858,0.20201993,108900.0,108890.0,1.51153754]
[1748025638306,0.20301993,108900.0,108890.0,1.52572111]
[1748025638576,0.20301993,108900.0,108890.0,1.51353754]
[1748025638795,0.20301993,108900.0,108890.0,1.51853754]
[1748025639000,0.19383745,108900.0,108890.0,1.51853754]
[1748025639230,0.19383745,108900.0,108890.0,1.52949489]
[1748025639661,0.19383745,108900.0,108890.0,0.87797489]
[1748025639920,0.19383745,108900.0,108890.0,1.52949489]
[1748025643612,0.19383745,108900.0,108890.0,1.36827188]
[1748025643817,0.19383745,108900.0,108890.0,1.55194347]
[1748025644069,0.19383745,108900.0,108890.0,1.36827188]
[1748025644287,0.19383745,108900.0,108890.0,1.35731453]
[1748025644825,0.19383745,108900.0,108890.0,0.70579453]
[1748025645008,0.19383745,108900.0,108890.0,1.35623453]
[1748025645189,0.19383745,108900.0,108890.0,0.99152897]
[1748025645397,0.19383745,108900.0,108890.0,1.26668897]
[1748025649054,0.19383745,108900.0,108890.0,1.46872762]
[1748025649238,0.19383745,108900.0,108890.0,1.55827318]
[1748025649850,0.19383745,108900.0,108890.0,1.5674565]
[1748025650119,0.19383745,108900.0,108890.0,1.57663974]
[1748025650757,0.19383745,108900.0,108890.0,1.5674565]
[1748025652171,0.19383745,108900.0,108890.0,1.57663974]
[1748025652522,0.19383745,108900.0,108890.0,1.5674565]
[1748025652721,0.19383745,108900.0,108890.0,1.57663974]
[1748025652930,0.19383745,108900.0,108890.0,1.5674565]
[1748025653359,0.18465472,108900.0,108890.0,1.55823318]
[1748025653597,0.25857479,108900.0,108890.0,0.97686812]
[1748025653820,0.30917479,108900.0,108890.0,0.41594424]
[1748025654036,0.39872035,108900.0,108890.0,0.41594424]
[1748025654249,0.39872035,108900.0,108890.0,1.06634424]
[1748025654458,0.39872035,108900.0,108890.0,1.40634424]
[1748025654875,0.39872035,108900.0,108890.0,1.40134424]
[1748025655133,0.39772035,108900.0,108890.0,1.39634424]
[1748025655347,0.39772035,108900.0,108890.0,1.3896]
[1748025655348,0.39872035,108900.0,108890.0,1.3896]
[1748025655556,0.39872035,108900.0,108890.0,0.4012]
[1748025656023,0.39872035,108900.0,108890.0,1.05164]
[1748025657953,0.39872035,108900.0,108890.0,1.05172]
[1748025659176,0.39872035,108900.0,108890.0,0.4012]
[1748025659393,0.39872035,108900.0,108890.0,1.05172]
[1748025660060,0.32480028,108900.0,108890.0,1.05172]
[1748025671381,0.32480028,108900.0,108890.0,0.77652]
[1748025671571,0.32480028,108900.0,108890.0,1.05176]
[1748025672097,0.32480028,108900.0,108890.0,0.4012]
[1748025672311,0.37564409,108900.0,108890.0,1.0518]
[1748025672514,0.32480028,108900.0,108890.0,0.77656]
[1748025672762,0.32480028,108900.0,108890.0,1.0518]
[1748025674059,0.32480028,108900.0,108890.0,0.4012]
[1748025674271,0.32480028,108900.0,108890.0,0.28024]
[1748025675844,0.37564409,108900.0,108890.0,0.28024]
[1748025676098,0.37564409,108900.0,108890.0,0.005]
[1748025676345,0.32480028,108900.0,108890.0,0.005]
[1748025684000,0.32480028,108900.0,108890.0,0.01359014]
[1748025684216,0.32480028,108900.0,108890.0,0.01259014]
[1748025684918,0.19383711,108900.0,108890.0,1.58222173]
[1748025685198,0.20301967,108900.0,108890.0,1.38996]
[1748025685423,0.20301967,108900.0,108890.0,0.74915603]
[1748025685653,0.20301967,108900.0,108890.0,1.39875603]
[1748025686111,0.20301967,108900.0,108890.0,1.40771338]
[1748025686355,0.20201967,108900.0,108890.0,1.40571338]
[1748025686593,0.01836453,108900.0,108890.0,1.63447553]
[1748025686817,0.18363623,108920.0,108910.0,0.34]
[1748025687059,0.18363623,108920.0,108910.0,0.98964]
[1748025687303,0.18363623,108920.0,108910.0,1.18245975]
[1748025687747,0.18363623,108920.0,108910.0,1.19164155]
[1748025688161,0.18463623,108920.0,108910.0,1.00082189]
[1748025688291,0.18463623,108920.0,108910.0,1.20282294]
[1748025688514,0.01018088,108920.0,108910.0,1.19425578]
[1748025688735,0.19380188,108920.0,108910.0,1.20522331]
[1748025689178,0.19380188,108920.0,108910.0,1.21440503]
[1748025689417,0.19280188,108920.0,108910.0,1.24463483]
[1748025689625,0.19280188,108920.0,108910.0,1.24663483]
[1748025689823,0.19280188,108920.0,108910.0,1.2346673]
[1748025690042,0.19280188,108920.0,108910.0,1.2356673]
[1748025690241,0.19280188,108920.0,108910.0,1.24484894]
[1748025690657,0.19280188,108920.0,108910.0,1.25938979]
[1748025690867,0.19280188,108920.0,108910.0,1.26857134]
[1748025691069,0.19280188,108920.0,108910.0,1.25938979]
[1748025691277,0.0183615,108920.0,108910.0,1.26857134]
[1748025691486,0.21116355,108920.0,108910.0,1.27775281]
[1748025691710,0.21116355,108920.0,108910.0,1.26857134]
[1748025692234,0.21116355,108920.0,108910.0,1.25938979]
[1748025692842,0.20198293,108920.0,108910.0,1.25938979]
[1748025694034,0.20198293,108920.0,108910.0,1.25942979]
[1748025694243,0.01836141,108920.0,108910.0,1.27779264]
[1748025694450,0.04590362,108920.0,108910.0,1.27779264]
[1748025694659,0.22034425,108920.0,108910.0,1.26861134]
[1748025694857,0.22034425,108920.0,108910.0,1.27779281]
[1748025695069,0.21116363,108920.0,108910.0,1.27779281]
[1748025695267,0.21116363,108920.0,108910.0,1.2777923]
[1748025695475,0.02754221,108920.0,108910.0,1.33510764]
[1748025695718,0.22034426,108920.0,108910.0,1.33510764]
[1748025696462,0.22034426,108920.0,108910.0,1.31674496]
[1748025697334,0.22034426,108920.0,108910.0,1.32592634]
[1748025697898,0.00918003,108930.0,108920.0,0.21116338]
[1748025698117,0.25752263,108940.0,108920.0,0.54734264]
[1748025698336,0.21114315,108930.0,108920.0,0.55652335]
[1748025698521,0.03671904,108930.0,108920.0,1.71006991]
[1748025698946,0.22950397,108930.0,108920.0,1.70088945]
[1748025700009,0.22950397,108930.0,108920.0,1.70968548]
[1748025700227,0.22950397,108930.0,108920.0,1.69132449]
[1748025700451,0.21114449,108930.0,108920.0,1.70968616]
[1748025700786,0.21114449,108930.0,108920.0,1.71886678]
[1748025701072,0.21114449,108930.0,108920.0,1.71986678]
[1748025701275,0.21114449,108930.0,108920.0,1.72186678]
[1748025701574,0.21114449,108930.0,108920.0,1.72190678]
[1748025702462,0.20196446,108930.0,108920.0,1.70354545]
[1748025702650,0.20196446,108930.0,108920.0,1.72190712]
[1748025702854,0.20196446,108930.0,108920.0,1.73108783]
[1748025703617,0.20196446,108930.0,108920.0,1.49716163]
[1748025703802,0.20196446,108930.0,108920.0,1.68078263]
[1748025704735,0.20196446,108930.0,108920.0,1.67160192]
[1748025704877,0.19278434,108930.0,108920.0,1.67040192]
[1748025705352,0.18360414,108930.0,108920.0,0.71231168]
[1748025705572,0.18360414,108930.0,108920.0,1.36051168]
[1748025705999,0.23480414,108930.0,108920.0,1.36051168]
[1748025706583,0.23480414,108930.0,108920.0,1.56249418]
[1748025706796,0.18360256,108940.0,108930.0,0.52360414]
[1748025707007,0.18360256,108940.0,108930.0,0.53278426]
[1748025707195,0.18360256,108940.0,108930.0,0.54196429]
[1748025707798,0.19278192,108940.0,108930.0,0.35454085]
[1748025708002,0.19278192,108940.0,108930.0,0.35464057]
[1748025708652,0.19278192,108940.0,108930.0,0.54697892]
[1748025708883,0.19278192,108940.0,108930.0,0.36337478]
[1748025712682,0.21968192,108940.0,108930.0,0.36337478]
[1748025714233,0.24528192,108940.0,108930.0,0.37434231]
[1748025715905,0.24528192,108940.0,108930.0,0.35980146]
[1748025716115,0.24528192,108940.0,108930.0,1.02261126]
[1748025716993,0.24528192,108940.0,108930.0,1.00800146]
[1748025717409,0.24528192,108940.0,108930.0,0.35980146]
[1748025717612,0.24528192,108940.0,108930.0,1.00800146]
[1748025718664,0.24528192,108940.0,108930.0,0.35980146]
[1748025718875,0.45163279,108940.0,108930.0,1.00796146]
[1748025719736,0.40874755,108940.0,108930.0,0.39284146]
[1748025719945,0.40874755,108940.0,108930.0,0.66796146]
[1748025720162,0.40874755,108940.0,108930.0,0.39284146]
[1748025720368,0.40874755,108940.0,108930.0,0.64825972]
[1748025720573,0.40974755,108940.0,108930.0,0.64825972]
[1748025722166,0.41274755,108940.0,108930.0,0.37313972]
[1748025722327,0.41374755,108940.0,108930.0,0.64825972]
[1748025722822,0.41274755,108940.0,108930.0,0.64825972]
[1748025723025,0.41574755,108940.0,108930.0,0.64825972]
[1748025723466,0.34182748,108940.0,108930.0,0.64825972]
[1748025725668,0.34182748,108940.0,108930.0,0.98825972]
[1748025725890,0.25228192,108940.0,108930.0,0.98825972]
[1748025726319,0.19978192,108940.0,108930.0,0.98825972]
[1748025726586,0.19978192,108940.0,108930.0,1.17186386]
[1748025726823,0.2089612,108940.0,108930.0,1.18981826]
[1748025727044,0.18360256,108940.0,108930.0,0.997034]
[1748025729147,0.18360256,108940.0,108930.0,1.18063814]
[1748025729347,0.18360256,108940.0,108930.0,1.18981834]
[1748025729552,0.18360256,108940.0,108930.0,0.997034]
[1748025730569,0.20870256,108940.0,108930.0,0.997034]
[1748025731546,0.18360256,108940.0,108930.0,1.57679814]
[1748025731752,0.18360256,108940.0,108930.0,1.393194]
[1748025732918,0.21050256,108940.0,108930.0,1.393194]
[1748025733127,0.01835745,108940.0,108930.0,1.60433774]
[1748025733348,0.22030321,108940.0,108930.0,1.60433791]
[1748025733558,0.21112461,108940.0,108930.0,1.59515821]
[1748025734263,0.21112444,108940.0,108930.0,1.60433808]
[1748025734466,0.22030372,108940.0,108930.0,1.60433808]
[1748025734694,0.22030372,108940.0,108930.0,1.61530561]
[1748025734890,0.22030372,108940.0,108930.0,1.62448531]
[1748025735417,0.22030423,108940.0,108930.0,1.60612582]
[1748025735620,0.22030423,108940.0,108930.0,1.61530577]
[1748025735797,0.22030423,108940.0,108930.0,1.62448564]
[1748025736351,0.22030423,108940.0,108930.0,1.63366534]
[1748025736753,0.01835779,108940.0,108930.0,1.62448472]
[1748025737113,0.0367155,108940.0,108930.0,1.62448472]
[1748025737310,0.0091786,108940.0,108930.0,1.63902557]
[1748025737518,0.22882689,108950.0,108940.0,0.19276657]
[1748025737712,0.21110532,108950.0,108940.0,0.20194568]
[1748025737918,0.00917885,108940.0,108930.0,1.62066575]
[1748025738336,0.02753664,108940.0,108930.0,1.62066575]
[1748025738556,0.02753631,108940.0,108930.0,1.62066575]
[1748025738813,0.03671525,108940.0,108930.0,1.62066575]
[1748025738991,0.04589486,108940.0,108930.0,1.62066625]
[1748025739168,0.04589477,108940.0,108930.0,1.63902615]
[1748025739382,0.21112385,108940.0,108930.0,1.63902615]
[1748025739585,0.22948215,108940.0,108930.0,1.64002615]
[1748025739802,0.19274896,108950.0,108940.0,0.20194559]
[1748025739994,0.20192722,108950.0,108940.0,0.20730742]
[1748025740377,0.20192722,108950.0,108940.0,0.01454085]
[1748025741074,0.20192722,108950.0,108940.0,0.03428266]
[1748025743122,0.22732722,108950.0,108940.0,0.03428266]
[1748025743355,0.22732722,108950.0,108940.0,0.02331513]
[1748025743568,0.25402722,108950.0,108940.0,0.29839513]
[1748025747847,0.00917776,108950.0,108940.0,0.93906505]
[1748025748048,0.00917751,108960.0,108950.0,0.22564583]
[1748025748178,0.20190835,108960.0,108950.0,0.597526]
[1748025748379,0.21108602,108960.0,108950.0,0.597526]
[1748025748618,0.21108602,108960.0,108950.0,0.57916972]
[1748025748827,0.21108602,108960.0,108950.0,0.587944]
[1748025749053,0.20190877,108960.0,108950.0,0.587944]
[1748025749688,0.20190877,108960.0,108950.0,0.59712235]
[1748025750392,0.20190877,108960.0,108950.0,0.58794409]
[1748025750607,0.22730877,108960.0,108950.0,0.58794409]
[1748025751317,0.24533126,108960.0,108950.0,0.58794409]
[1748025753224,0.23615359,108960.0,108950.0,0.85380557]
[1748025753401,0.23615359,108960.0,108950.0,0.86298409]
[1748025753873,0.23615359,108960.0,108950.0,0.87395162]
[1748025756028,0.23615359,108960.0,108950.0,0.68120266]
[1748025756234,0.23615359,108960.0,108950.0,0.8647731]
[1748025757556,0.23615359,108960.0,108950.0,0.87395162]
[1748025757768,0.23615359,108960.0,108950.0,0.88312988]
[1748025758001,0.23615359,108960.0,108950.0,0.88313005]
[1748025758740,0.23615359,108960.0,108950.0,0.87395162]
[1748025758942,0.23615359,108960.0,108950.0,0.68120266]
[1748025762017,0.23615359,108960.0,108950.0,0.03428266]
[1748025762217,0.23615359,108960.0,108950.0,0.68116266]
[1748025766605,0.23615359,108960.0,108950.0,0.69577246]
[1748025768353,0.23615359,108960.0,108950.0,0.69461246]
[1748025770387,0.23615359,108960.0,108950.0,0.68364493]
[1748025771990,0.23615359,108960.0,108950.0,1.07968493]
[1748025772409,0.24533126,108960.0,108950.0,1.41968493]
[1748025772664,0.01835417,108960.0,108950.0,1.75369352]
[1748025772869,0.25278974,108970.0,108960.0,0.19809444]
[1748025773070,0.26196657,108970.0,108960.0,0.20727211]
[1748025773288,0.27114273,108970.0,108960.0,0.2164497]
[1748025773495,0.06007616,108970.0,108960.0,0.5564497]
[1748025773724,0.00917616,108970.0,108960.0,0.71191008]
[1748025773934,0.0183524,108970.0,108960.0,0.71191008]
[1748025774132,0.00917616,108970.0,108960.0,0.71191008]
[1748025774750,0.01835257,108970.0,108960.0,0.71191008]
[1748025774954,0.26194729,108980.0,108970.0,0.22024273]
[1748025775160,0.26194729,108980.0,108970.0,0.95550829]
[1748025775335,0.27112269,108980.0,108970.0,0.94633205]
[1748025775718,0.27112269,108980.0,108970.0,0.98069539]
[1748025776119,0.26194729,108980.0,108970.0,0.97161886]
[1748025776346,0.25277164,108980.0,108970.0,0.9624422]
[1748025776604,0.25277164,108980.0,108970.0,0.97161895]
[1748025776817,0.25277164,108980.0,108970.0,0.98079561]
[1748025777116,0.2435959,108980.0,108970.0,0.75511882]
[1748025777377,0.23441991,108980.0,108970.0,0.01985326]
[1748025777608,0.23441991,108980.0,108970.0,0.66553326]
[1748025779524,0.23441991,108980.0,108970.0,0.654514]
[1748025780575,0.23441991,108980.0,108970.0,0.008874]
[1748025780779,0.23441991,108980.0,108970.0,0.654514]
[1748025782589,0.23441991,108980.0,108970.0,0.008874]
[1748025782988,0.23441991,108980.0,108970.0,0.654514]
[1748025784141,0.24561341,108970.0,108960.0,0.04012991]
[1748025784286,0.24561341,108970.0,108960.0,0.41086972]
[1748025784501,0.24561341,108970.0,108960.0,0.38528066]
[1748025785264,0.24561341,108970.0,108960.0,0.66128066]
[1748025785999,0.24561341,108970.0,108960.0,1.00128066]
[1748025786398,0.24561341,108970.0,108960.0,0.35564066]
[1748025786614,0.24561341,108970.0,108960.0,0.34109981]
[1748025786831,0.24561341,108970.0,108960.0,0.34309981]
[1748025787197,0.24561341,108970.0,108960.0,0.98873981]
[1748025788641,0.24561341,108970.0,108960.0,0.73873981]
[1748025788899,0.24561341,108970.0,108960.0,0.37264]
[1748025789085,0.24561341,108970.0,108960.0,0.64764]
[1748025789813,0.24561341,108970.0,108960.0,0.002]
[1748025790015,0.24561341,108970.0,108960.0,0.64764]
[1748025791136,0.24561341,108970.0,108960.0,0.002]
[1748025791341,0.24561341,108970.0,108960.0,0.64764]
[1748025793315,0.33515897,108970.0,108960.0,0.37264]
[1748025793518,0.33515897,108970.0,108960.0,0.64764]
[1748025793916,0.33515897,108970.0,108960.0,0.98764]
[1748025794330,0.33515897,108970.0,108960.0,0.002]
[1748025794531,0.25302689,108950.0,108940.0,0.01097926]
[1748025794736,0.34257245,108950.0,108940.0,0.28610376]
[1748025794937,0.34257245,108950.0,108940.0,0.2751245]
[1748025795566,0.34257245,108950.0,108940.0,0.2771245]
[1748025796056,0.34257245,108950.0,108940.0,0.2751245]
[1748025796531,0.34257245,108950.0,108940.0,0.2761245]
[1748025796920,0.34257245,108950.0,108940.0,0.0011245]
[1748025797224,0.34257245,108950.0,108940.0,0.2761645]
[1748025797434,0.34257245,108950.0,108940.0,0.2771645]
[1748025797804,0.34257245,108950.0,108940.0,0.0011245]
[1748025798021,0.34257245,108950.0,108940.0,0.2761645]
[1748025798432,0.34257245,108950.0,108940.0,0.2751645]
[1748025799325,0.34257245,108950.0,108940.0,0.0001245]
[1748025799544,0.34257245,108950.0,108940.0,0.2752045]
[1748025799689,0.34357245,108950.0,108940.0,0.2752045]
[1748025799884,0.34357245,108950.0,108940.0,0.0001245]
[1748025800554,0.25402689,108950.0,108940.0,0.0001245]
[1748025800975,0.25402689,108950.0,108940.0,0.00241911]
[1748025801275,0.25402689,108950.0,108940.0,0.0001245]
[1748025802667,0.25402689,108950.0,108940.0,0.00241911]
[1748025805321,0.25402689,108950.0,108940.0,0.34241911]
[1748025805436,0.25402689,108950.0,108940.0,0.3401245]
[1748025805835,0.74029463,108950.0,108940.0,0.0001245]
[1748025806044,0.41749252,108950.0,108940.0,0.0001245]
[1748025807869,0.41749252,108950.0,108940.0,0.6448445]
[1748025808079,0.41749252,108950.0,108940.0,0.3697645]
[1748025808286,0.41749252,108950.0,108940.0,0.6448445]
[1748025808883,0.34357245,108950.0,108940.0,0.6448445]
[1748025809520,0.39357245,108950.0,108940.0,0.6448445]
[1748025812156,0.39357245,108950.0,108940.0,0.0001245]
[1748025812362,0.39357245,108950.0,108940.0,0.6448845]
[1748025812862,0.39357245,108950.0,108940.0,0.0001245]
[1748025813042,0.39357245,108950.0,108940.0,0.6448845]
[1748025813269,0.39357245,108950.0,108940.0,0.3697645]
[1748025813477,0.80116567,108950.0,108940.0,0.0001245]
[1748025813682,0.82869967,108950.0,108940.0,0.0001245]
[1748025814559,0.82969967,108950.0,108940.0,0.0001245]
[1748025814762,0.83169967,108950.0,108940.0,0.0001245]
[1748025816482,0.79260856,108950.0,108940.0,0.0001245]
[1748025816675,0.0542,108930.0,108920.0,0.6448]
[1748025816898,0.3382747,108930.0,108920.0,0.64492465]
[1748025817218,0.33652973,108930.0,108920.0,0.64492465]
[1748025817864,0.33652973,108930.0,108920.0,0.64792465]
[1748025819377,0.33652973,108930.0,108920.0,0.37280465]
[1748025819578,0.42082164,108930.0,108920.0,0.37280465]
[1748025819782,0.42082164,108930.0,108920.0,0.64792465]
[1748025819987,0.65933184,108930.0,108920.0,0.37280465]
[1748025820443,0.65933184,108930.0,108920.0,0.00316465]
[1748025820859,0.65933184,108930.0,108920.0,0.00216465]
[1748025821069,0.66233184,108930.0,108920.0,0.00216465]
[1748025821456,0.75185335,108930.0,108920.0,0.00216465]
[1748025822374,0.75185335,108930.0,108920.0,0.00016465]
[1748025822542,0.66533184,108930.0,108920.0,0.00116465]
[1748025822764,0.34252973,108930.0,108920.0,0.00116465]
[1748025822911,0.20203781,108890.0,108880.0,0.20182821]
[1748025823284,0.2112213,108890.0,108880.0,0.59004136]
[1748025823462,0.2112213,108890.0,108880.0,0.22032136]
[1748025823696,0.2112213,108890.0,108880.0,0.58085719]
[1748025823902,0.20203832,108890.0,108880.0,0.57167286]
[1748025824120,0.19285508,108890.0,108880.0,0.3879855]
[1748025824299,0.19285508,108890.0,108880.0,0.67691085]
[1748025824944,0.19285508,108890.0,108880.0,1.01691085]
[1748025826327,0.19285508,108890.0,108880.0,1.41315085]
[1748025828446,0.19285508,108890.0,108880.0,0.76488]
[1748025828642,0.19285508,108890.0,108880.0,0.94856846]
[1748025828880,0.192855,108890.0,108880.0,0.97612096]
[1748025829101,0.19285491,108890.0,108880.0,0.96693671]
[1748025829567,0.19285491,108890.0,108880.0,1.25311597]
[1748025830299,0.19285491,108890.0,108880.0,1.26765682]
[1748025830938,0.19285491,108890.0,108880.0,1.25667756]
[1748025831382,0.19285491,108890.0,108880.0,1.25957756]
[1748025831605,0.19285491,108890.0,108880.0,1.2595779]
[1748025832135,0.19285491,108890.0,108880.0,1.5995779]
[1748025832467,0.18367159,108890.0,108880.0,1.61055716]
[1748025832676,0.18367159,108890.0,108880.0,1.13040011]
[1748025832978,0.18367159,108890.0,108880.0,1.40560011]
[1748025833833,0.18367159,108890.0,108880.0,1.5984729]
[1748025834036,0.18367159,108890.0,108880.0,1.6013729]
[1748025834255,0.18367159,108890.0,108880.0,1.40560011]
[1748025835207,0.18367159,108890.0,108880.0,1.39105926]
[1748025836947,0.23767159,108890.0,108880.0,0.74721926]
[1748025837177,0.23767159,108890.0,108880.0,1.11585926]
[1748025837378,0.23767159,108890.0,108880.0,1.39105926]
[1748025839622,0.23767159,108890.0,108880.0,1.11585926]
[1748025840039,0.23767159,108890.0,108880.0,1.39105926]
[1748025840485,0.23767159,108890.0,108880.0,0.74721926]
[1748025840720,0.40113722,108890.0,108880.0,1.05109926]
[1748025840994,0.40113722,108890.0,108880.0,1.3996798]
[1748025842123,0.40113722,108890.0,108880.0,1.38870054]
[1748025842330,0.40113722,108890.0,108880.0,1.04870054]
[1748025843793,0.32721715,108890.0,108880.0,1.04870054]
[1748025844000,0.32821715,108890.0,108880.0,1.04870054]
[1748025844212,0.32821715,108890.0,108880.0,1.38870054]
[1748025844416,0.23867159,108890.0,108880.0,1.38870054]
[1748025844844,0.23867159,108890.0,108880.0,1.38012]
[1748025845643,0.23867159,108890.0,108880.0,1.38890206]
[1748025850749,0.23867159,108890.0,108880.0,1.38898206]
[1748025852833,0.23867159,108890.0,108880.0,1.38902206]
[1748025853238,0.23867159,108890.0,108880.0,0.74506206]
[1748025853447,0.23867159,108890.0,108880.0,1.38902206]
[1748025855429,0.23867159,108890.0,108880.0,0.74506206]
[1748025855640,0.23867159,108890.0,108880.0,1.11378206]
[1748025855837,0.23867159,108890.0,108880.0,1.38902206]
[1748025858931,0.23867159,108890.0,108880.0,1.11378206]
[1748025859142,0.32821715,108890.0,108880.0,1.38902206]
[1748025859509,0.32821715,108890.0,108880.0,0.77378206]
[1748025859708,0.32821715,108890.0,108880.0,1.04902206]
[1748025859939,0.32821715,108890.0,108880.0,1.05760416]
[1748025860865,0.32821715,108890.0,108880.0,1.0488221]
[1748025862356,0.32821715,108890.0,108880.0,0.7735821]
[1748025862556,0.32821715,108890.0,108880.0,1.0488221]
[1748025863390,0.32821715,108890.0,108880.0,0.4048621]
[1748025863605,0.32821715,108890.0,108880.0,1.0477421]
[1748025863989,0.32821715,108890.0,108880.0,0.7725021]
[1748025864162,0.32821715,108890.0,108880.0,0.4048621]
[1748025864381,0.32821715,108890.0,108880.0,1.0477421]
[1748025865623,0.32821715,108890.0,108880.0,0.4048621]
[1748025865916,0.32821715,108890.0,108880.0,0.6801021]
[1748025866250,0.32821715,108890.0,108880.0,0.4048621]
[1748025866548,0.32821715,108890.0,108880.0,0.6801021]
[1748025868118,0.37940587,108890.0,108880.0,0.6801021]
[1748025870572,0.32821715,108890.0,108880.0,0.6801421]
[1748025881205,0.32821715,108890.0,108880.0,0.4048621]
[1748025881417,0.32821715,108890.0,108880.0,0.6801421]
[1748025882867,0.32821715,108890.0,108880.0,0.2839021]
[1748025888505,0.32821715,108890.0,108880.0,0.28367551]
[1748025889504,0.32821715,108890.0,108880.0,0.00839551]
[1748025889753,0.32821715,108890.0,108880.0,0.99273151]
[1748025889754,0.18467159,108890.0,108880.0,0.99273151]
[1748025889976,0.18467159,108890.0,108880.0,0.99043551]
[1748025890211,0.23697159,108890.0,108880.0,0.99043551]
[1748025890414,0.23697159,108890.0,108880.0,0.98204]
[1748025890548,0.23697159,108890.0,108880.0,0.99084008]
[1748025892373,0.23697159,108890.0,108880.0,0.37556008]
[1748025893500,0.23697159,108890.0,108880.0,0.65084008]
[1748025894441,0.23697159,108890.0,108880.0,0.99084008]
[1748025898116,0.23697159,108890.0,108880.0,0.71556008]
[1748025898350,0.23697159,108890.0,108880.0,0.99080008]
[1748025898553,0.23697159,108890.0,108880.0,0.99076008]
[1748025900790,0.32651715,108890.0,108880.0,0.71552008]
[1748025901021,0.32651715,108890.0,108880.0,0.99076008]
[1748025901446,0.32651715,108890.0,108880.0,0.65076008]
[1748025901858,0.32651715,108890.0,108880.0,0.65934348]
[1748025902529,0.32651715,108890.0,108880.0,0.6505434]
[1748025905196,0.32651715,108890.0,108880.0,0.6505834]
[1748025907526,0.32651715,108890.0,108880.0,0.3753434]
[1748025907736,0.23770533,108870.0,108850.0,0.02558906]
[1748025907957,0.19290815,108860.0,108850.0,0.01148509]
[1748025908175,0.19290815,108860.0,108850.0,0.56568418]
[1748025909067,0.19290815,108860.0,108850.0,0.66122509]
[1748025909294,0.19290815,108860.0,108850.0,0.66252509]
[1748025909507,0.19290815,108860.0,108850.0,0.65852509]
[1748025909762,0.19390815,108860.0,108850.0,1.00631786]
[1748025909933,0.19390815,108860.0,108850.0,1.01131786]
[1748025912612,0.001,108860.0,108850.0,1.19875695]
[1748025912836,0.01937086,108860.0,108850.0,1.3334032]
[1748025913076,0.03774223,108860.0,108850.0,1.3334032]
[1748025913444,0.03774223,108860.0,108850.0,1.32242394]
[1748025913859,0.23065105,108860.0,108850.0,1.32242394]
[1748025914089,0.04692884,108860.0,108850.0,1.32242394]
[1748025914289,0.02855688,108860.0,108850.0,1.32246394]
[1748025914489,0.03774273,108860.0,108850.0,1.32246394]
[1748025914692,0.03774273,108860.0,108850.0,1.32890302]
[1748025915524,0.04692867,108860.0,108850.0,1.32890302]
[1748025915903,0.04692918,108860.0,108850.0,1.32890302]
[1748025916134,0.02855722,108860.0,108850.0,1.32890302]
[1748025916346,0.02855722,108860.0,108850.0,1.72526302]
[1748025917033,0.03774316,108860.0,108850.0,1.72526302]
[1748025917448,0.02855722,108860.0,108850.0,1.72526302]
[1748025917665,0.74460293,108860.0,108850.0,0.02181089]
[1748025918067,0.74460293,108860.0,108850.0,0.01537181]
[1748025918273,0.42105963,108860.0,108850.0,0.01537181]
[1748025918580,0.24742587,108850.0,108840.0,0.3658]
[1748025918783,0.33697143,108850.0,108840.0,0.00012458]
[1748025919011,0.33697143,108850.0,108840.0,0.64120458]
[1748025919215,0.33697143,108850.0,108840.0,0.00012458]
[1748025919534,0.33697143,108850.0,108840.0,0.64124458]
[1748025919739,0.33797143,108850.0,108840.0,0.64124458]
[1748025920748,0.33797143,108850.0,108840.0,0.00012458]
[1748025920972,0.18380663,108810.0,108790.0,0.35099315]
[1748025921181,0.18380663,108810.0,108800.0,0.36596455]
[1748025921384,0.18376663,108810.0,108800.0,0.36596455]
[1748025921773,0.18376663,108810.0,108800.0,0.3745196]
[1748025921981,0.18376663,108810.0,108800.0,0.0086796]
[1748025922505,0.18376663,108810.0,108800.0,0.6519196]
[1748025922668,0.18476663,108810.0,108800.0,0.6519196]
[1748025923082,0.18476663,108810.0,108800.0,0.9919196]
[1748025923285,0.18476663,108810.0,108800.0,0.3506796]
[1748025923488,0.18476663,108810.0,108800.0,0.9919596]
[1748025926311,0.18476663,108810.0,108800.0,1.3884796]
[1748025926875,0.20318712,108810.0,108800.0,1.61103514]
[1748025927085,0.20318669,108810.0,108800.0,1.7005807]
[1748025927294,0.20318669,108810.0,108800.0,1.72463775]
[1748025927496,0.20318669,108810.0,108800.0,1.73382875]
[1748025927698,0.20318669,108810.0,108800.0,1.4271175]
[1748025928038,0.20318669,108810.0,108800.0,0.3893175]
[1748025928246,0.20318669,108810.0,108800.0,1.41257665]